[Event "*** SCC Grand Prix: Titled Tuesday Blitz"]
[Site "Chess.com"]
[Date "2020.07.21"]
[Round "8"]
[White "chigorin28"]
[Black "csati17"]
[Result "1-0"]
[WhiteElo "2447"]
[BlackElo "2604"]
[TimeControl "180+1"]
[EndTime "11:36:46 PDT"]
[Termination "chigorin28 won by checkmate"]

1. e4 {[%clk 0:03:00.9]} 1... e6 {[%clk 0:03:00.1]} 2. d4 {[%clk 0:03:00.4]}
2... d5 {[%clk 0:03:01]} 3. Bd3 {[%clk 0:03:00]} 3... Nc6 {[%clk 0:02:57.7]} 4.
Ne2 {[%clk 0:02:54.6]} 4... Nb4 {[%clk 0:02:56.7]} 5. O-O {[%clk 0:02:46]} 5...
Nxd3 {[%clk 0:02:56.2]} 6. Qxd3 {[%clk 0:02:46.1]} 6... Nf6 {[%clk 0:02:53.8]}
7. e5 {[%clk 0:02:39.2]} 7... Nd7 {[%clk 0:02:52.7]} 8. f4 {[%clk 0:02:39.5]}
8... g6 {[%clk 0:02:51.4]} 9. Nd2 {[%clk 0:02:15.6]} 9... c5 {[%clk 0:02:50.3]}
10. c3 {[%clk 0:02:15.2]} 10... a6 {[%clk 0:02:27.3]} 11. Nf3 {[%clk 0:02:14.3]}
11... b5 {[%clk 0:02:25.6]} 12. Be3 {[%clk 0:02:10.9]} 12... c4 {[%clk
0:02:24.8]} 13. Qd1 {[%clk 0:01:58.1]} 13... Nb6 {[%clk 0:02:24.4]} 14. Bf2
{[%clk 0:01:45.3]} 14... Be7 {[%clk 0:02:21.2]} 15. Qe1 {[%clk 0:01:45.3]} 15...
h6 {[%clk 0:02:16.2]} 16. Rd1 {[%clk 0:01:42.9]} 16... a5 {[%clk 0:02:13.4]} 17.
Bh4 {[%clk 0:01:35.7]} 17... g5 {[%clk 0:02:12.5]} 18. fxg5 {[%clk 0:01:30.4]}
18... hxg5 {[%clk 0:02:13.4]} 19. Bg3 {[%clk 0:01:30.5]} 19... Rh7 {[%clk
0:01:28.6]} 20. h3 {[%clk 0:01:30.6]} 20... Bd7 {[%clk 0:01:17.6]} 21. Nh2
{[%clk 0:01:30.5]} 21... Bc6 {[%clk 0:01:08]} 22. Ng4 {[%clk 0:01:15.6]} 22...
Nd7 {[%clk 0:01:08]} 23. Qd2 {[%clk 0:01:06.5]} 23... b4 {[%clk 0:01:04]} 24.
Rf2 {[%clk 0:01:04.1]} 24... bxc3 {[%clk 0:01:00]} 25. bxc3 {[%clk 0:01:03.9]}
25... Rb8 {[%clk 0:00:58.5]} 26. Rdf1 {[%clk 0:01:03.9]} 26... Qc7 {[%clk
0:00:38.2]} 27. Qc2 {[%clk 0:01:03.1]} 27... Rg7 {[%clk 0:00:37.6]} 28. Nh6
{[%clk 0:01:03]} 28... Qb7 {[%clk 0:00:31.9]} 29. Nxf7 {[%clk 0:01:02.1]} 29...
Qb2 {[%clk 0:00:31.9]} 30. Qd1 {[%clk 0:00:50.4]} 30... Qxa2 {[%clk 0:00:31.9]}
31. Nd6+ {[%clk 0:00:41]} 31... Bxd6 {[%clk 0:00:31.4]} 32. exd6 {[%clk
0:00:41.9]} 32... Ba4 {[%clk 0:00:28.3]} 33. Qc1 {[%clk 0:00:34.1]} 33... Qc2
{[%clk 0:00:28.2]} 34. Qe3 {[%clk 0:00:31.1]} 34... Qe4 {[%clk 0:00:26.3]} 35.
Qc1 {[%clk 0:00:25.5]} 35... Rb7 {[%clk 0:00:18.9]} 36. Qa1 {[%clk 0:00:20.2]}
36... Bc6 {[%clk 0:00:15.1]} 37. Qxa5 {[%clk 0:00:18.7]} 37... Rb2 {[%clk
0:00:15.4]} 38. Re1 {[%clk 0:00:13.9]} 38... Qe3 {[%clk 0:00:14.4]} 39. Kf1
{[%clk 0:00:12]} 39... Rf7 {[%clk 0:00:13.7]} 40. Qc7 {[%clk 0:00:06.7]} 40...
Bb7 {[%clk 0:00:11.2]} 41. Rxf7 {[%clk 0:00:04.1]} 41... Kxf7 {[%clk 0:00:12.1]}
42. Qxd7+ {[%clk 0:00:04.3]} 42... Kg6 {[%clk 0:00:13]} 43. Qe7 {[%clk
0:00:04.3]} 43... Qd3 {[%clk 0:00:11.9]} 44. Qxe6+ {[%clk 0:00:04.3]} 44... Kh5
{[%clk 0:00:12.4]} 45. Qg4+ {[%clk 0:00:04.2]} 45... Kg6 {[%clk 0:00:12.4]} 46.
Qf3 {[%clk 0:00:04.6]} 46... Bc8 {[%clk 0:00:11.8]} 47. Qxd3+ {[%clk 0:00:04.4]}
47... cxd3 {[%clk 0:00:12.7]} 48. Ng1 {[%clk 0:00:04.5]} 48... d2 {[%clk
0:00:13.1]} 49. Rd1 {[%clk 0:00:04.9]} 49... Ba6+ {[%clk 0:00:13.8]} 50. Kf2
{[%clk 0:00:04.6]} 50... Kf7 {[%clk 0:00:14.5]} 51. Nf3 {[%clk 0:00:04.8]} 51...
Bd3 {[%clk 0:00:14.1]} 52. Rxd2 {[%clk 0:00:05]} 52... Rxd2+ {[%clk 0:00:14]}
53. Nxd2 {[%clk 0:00:05.9]} 53... Ke6 {[%clk 0:00:14.6]} 54. Nf3 {[%clk
0:00:05.9]} 54... Kd7 {[%clk 0:00:14.9]} 55. Nxg5 {[%clk 0:00:06.1]} 55... Bf5
{[%clk 0:00:15.8]} 56. Nf3 {[%clk 0:00:06.4]} 56... Ke6 {[%clk 0:00:15.6]} 57.
Ke3 {[%clk 0:00:07.3]} 57... Bg6 {[%clk 0:00:15.8]} 58. Be5 {[%clk 0:00:06.7]}
58... Kd7 {[%clk 0:00:15.5]} 59. g3 {[%clk 0:00:07]} 59... Bf5 {[%clk
0:00:15.5]} 60. h4 {[%clk 0:00:07.5]} 60... Be4 {[%clk 0:00:16.4]} 61. Kf4
{[%clk 0:00:07.9]} 61... Bd3 {[%clk 0:00:16.6]} 62. Ng5 {[%clk 0:00:08.8]} 62...
Bg6 {[%clk 0:00:16.8]} 63. g4 {[%clk 0:00:09.1]} 63... Ke8 {[%clk 0:00:17]} 64.
h5 {[%clk 0:00:10]} 64... Kf8 {[%clk 0:00:17.5]} 65. hxg6 {[%clk 0:00:09.5]}
65... Ke8 {[%clk 0:00:16.5]} 66. g7 {[%clk 0:00:08.9]} 66... Kd8 {[%clk
0:00:17]} 67. g8=Q+ {[%clk 0:00:08.6]} 67... Kd7 {[%clk 0:00:17.9]} 68. Qf7+
{[%clk 0:00:07.8]} 68... Kc6 {[%clk 0:00:18.7]} 69. Qc7+ {[%clk 0:00:07.7]}
69... Kb5 {[%clk 0:00:19.6]} 70. Qc5+ {[%clk 0:00:07.7]} 70... Ka4 {[%clk
0:00:20.3]} 71. Qb4# {[%clk 0:00:07.9]} 1-0

[Event "*** SCC Grand Prix: Titled Tuesday Blitz"]
[Site "Chess.com"]
[Date "2020.07.21"]
[Round "8"]
[White "ajian"]
[Black "Onegust"]
[Result "1-0"]
[WhiteElo "2439"]
[BlackElo "2571"]
[TimeControl "180+1"]
[EndTime "11:36:46 PDT"]
[Termination "ajian won on time"]

1. Nf3 {[%clk 0:02:57]} 1... Nf6 {[%clk 0:02:59.6]} 2. b3 {[%clk 0:02:57]} 2...
g6 {[%clk 0:02:57.7]} 3. Bb2 {[%clk 0:02:57]} 3... Bg7 {[%clk 0:02:57.5]} 4. e3
{[%clk 0:02:57]} 4... O-O {[%clk 0:02:57.3]} 5. Be2 {[%clk 0:02:57.4]} 5... b6
{[%clk 0:02:55.6]} 6. O-O {[%clk 0:02:57.2]} 6... Bb7 {[%clk 0:02:56.1]} 7. c4
{[%clk 0:02:56.9]} 7... d6 {[%clk 0:02:53.4]} 8. d4 {[%clk 0:02:57]} 8... Nbd7
{[%clk 0:02:52.7]} 9. Nbd2 {[%clk 0:02:56.9]} 9... e6 {[%clk 0:02:51.2]} 10. Qc2
{[%clk 0:02:55.6]} 10... Qe7 {[%clk 0:02:51.1]} 11. e4 {[%clk 0:02:28.3]} 11...
Nh5 {[%clk 0:02:42.9]} 12. Rfe1 {[%clk 0:02:24.2]} 12... Nf4 {[%clk 0:02:40.6]}
13. Bf1 {[%clk 0:02:24.1]} 13... g5 {[%clk 0:02:35.1]} 14. g3 {[%clk 0:02:16.4]}
14... Ng6 {[%clk 0:02:34.1]} 15. h3 {[%clk 0:01:53.6]} 15... h6 {[%clk
0:02:18.3]} 16. Bg2 {[%clk 0:01:48.4]} 16... c5 {[%clk 0:01:57.2]} 17. Rad1
{[%clk 0:01:42]} 17... cxd4 {[%clk 0:01:54.3]} 18. Nxd4 {[%clk 0:01:40]} 18...
a6 {[%clk 0:01:49.3]} 19. Nf1 {[%clk 0:01:31.5]} 19... Rac8 {[%clk 0:01:46.3]}
20. Qd2 {[%clk 0:01:22.1]} 20... Rfd8 {[%clk 0:01:31.5]} 21. Nh2 {[%clk
0:01:15.4]} 21... Nf6 {[%clk 0:01:17.1]} 22. Ba3 {[%clk 0:01:06.6]} 22... Qc7
{[%clk 0:01:11.2]} 23. Rc1 {[%clk 0:00:57.5]} 23... Qb8 {[%clk 0:01:09.8]} 24.
Qe3 {[%clk 0:00:53.9]} 24... Nd7 {[%clk 0:01:03.5]} 25. Red1 {[%clk 0:00:50.3]}
25... Nc5 {[%clk 0:01:02.7]} 26. Ng4 {[%clk 0:00:43.2]} 26... Ne5 {[%clk
0:00:48.7]} 27. Bb2 {[%clk 0:00:36.1]} 27... Qc7 {[%clk 0:00:40.2]} 28. Kh2
{[%clk 0:00:30.6]} 28... Ncd7 {[%clk 0:00:38.4]} 29. f4 {[%clk 0:00:28.6]} 29...
gxf4 {[%clk 0:00:35.4]} 30. gxf4 {[%clk 0:00:28.5]} 30... Nxg4+ {[%clk 0:00:29]}
31. hxg4 {[%clk 0:00:29.4]} 31... Qc5 {[%clk 0:00:26.7]} 32. Bc3 {[%clk
0:00:26.2]} 32... Nf6 {[%clk 0:00:26.7]} 33. Qe2 {[%clk 0:00:20.5]} 33... Qc7
{[%clk 0:00:20.2]} 34. g5 {[%clk 0:00:19.1]} 34... hxg5 {[%clk 0:00:20.1]} 35.
fxg5 {[%clk 0:00:20]} 35... Nd7 {[%clk 0:00:19.7]} 36. Kh1 {[%clk 0:00:12.9]}
36... Ne5 {[%clk 0:00:19.5]} 37. Nf3 {[%clk 0:00:13]} 37... Qc5 {[%clk
0:00:07.9]} 38. Rf1 {[%clk 0:00:11]} 38... Ng6 {[%clk 0:00:03.3]} 39. Bxg7
{[%clk 0:00:09.3]} 39... Kxg7 {[%clk 0:00:04.2]} 40. Qb2+ {[%clk 0:00:09.7]}
40... Kg8 {[%clk 0:00:03.5]} 41. b4 {[%clk 0:00:07]} 41... Qc7 {[%clk
0:00:03.5]} 42. Qd4 {[%clk 0:00:06.5]} 42... Qe7 {[%clk 0:00:02.8]} 43. Qe3
{[%clk 0:00:06.3]} 43... e5 {[%clk 0:00:02.8]} 44. Qf2 {[%clk 0:00:05.6]} 44...
Nf4 {[%clk 0:00:02.9]} 45. Qg3 {[%clk 0:00:05.5]} 45... b5 {[%clk 0:00:03.2]}
46. Rcd1 {[%clk 0:00:05.3]} 46... Rxc4 {[%clk 0:00:02.6]} 47. Nh4 {[%clk
0:00:05]} 47... Bxe4 {[%clk 0:00:02.4]} 48. Bxe4 {[%clk 0:00:04.4]} 48... Rxe4
{[%clk 0:00:02.9]} 49. g6 {[%clk 0:00:04.8]} 49... Qf6 {[%clk 0:00:02.2]} 50.
gxf7+ {[%clk 0:00:04.6]} 50... Kxf7 {[%clk 0:00:02.7]} 51. Rg1 {[%clk
0:00:04.9]} 51... Rg8 {[%clk 0:00:02.6]} 52. Qxg8+ {[%clk 0:00:04.5]} 52... Ke7
{[%clk 0:00:03.2]} 53. Rg7+ {[%clk 0:00:04.8]} 1-0

[Event "*** SCC Grand Prix: Titled Tuesday Blitz"]
[Site "Chess.com"]
[Date "2020.07.21"]
[Round "8"]
[White "nobodyperfect13"]
[Black "Gerodot71"]
[Result "0-1"]
[WhiteElo "2289"]
[BlackElo "2413"]
[TimeControl "180+1"]
[EndTime "11:36:46 PDT"]
[Termination "Gerodot71 won on time"]

1. c4 {[%clk 0:03:00.9]} 1... e5 {[%clk 0:02:57.6]} 2. g3 {[%clk 0:03:00.9]}
2... c6 {[%clk 0:02:56.7]} 3. d4 {[%clk 0:02:58.3]} 3... exd4 {[%clk 0:02:55.6]}
4. Qxd4 {[%clk 0:02:56.9]} 4... Nf6 {[%clk 0:02:54.9]} 5. Nc3 {[%clk 0:02:55.9]}
5... Na6 {[%clk 0:02:52.6]} 6. Bg2 {[%clk 0:02:52.1]} 6... Bc5 {[%clk
0:02:51.1]} 7. Qd1 {[%clk 0:02:50.1]} 7... O-O {[%clk 0:02:50.3]} 8. Nf3 {[%clk
0:02:49.9]} 8... Re8 {[%clk 0:02:48.6]} 9. O-O {[%clk 0:02:49.1]} 9... Nc7
{[%clk 0:02:44.7]} 10. b3 {[%clk 0:02:40.3]} 10... a5 {[%clk 0:02:37.9]} 11. Bb2
{[%clk 0:02:39.4]} 11... d6 {[%clk 0:02:07.5]} 12. Qd2 {[%clk 0:02:33.9]} 12...
Bb4 {[%clk 0:02:05.1]} 13. a3 {[%clk 0:02:33]} 13... Ne4 {[%clk 0:02:03.7]} 14.
Qc2 {[%clk 0:02:32.9]} 14... Bxc3 {[%clk 0:01:54.3]} 15. Bxc3 {[%clk 0:02:32.4]}
15... Bf5 {[%clk 0:01:51.8]} 16. Nd4 {[%clk 0:02:01.1]} 16... Nxc3 {[%clk
0:01:40.4]} 17. Nxf5 {[%clk 0:01:45.6]} 17... Nxe2+ {[%clk 0:01:35]} 18. Kh1
{[%clk 0:01:45.5]} 18... g6 {[%clk 0:01:34.7]} 19. Rae1 {[%clk 0:01:33.3]} 19...
gxf5 {[%clk 0:01:12.3]} 20. Rxe2 {[%clk 0:01:28.9]} 20... Qf6 {[%clk 0:01:12.7]}
21. Rd2 {[%clk 0:01:20.1]} 21... Rad8 {[%clk 0:01:10.3]} 22. Rfd1 {[%clk
0:01:19.8]} 22... Re6 {[%clk 0:01:10.1]} 23. Kg1 {[%clk 0:01:11.3]} 23... Rde8
{[%clk 0:01:09]} 24. h3 {[%clk 0:01:08]} 24... f4 {[%clk 0:01:05.2]} 25. Rd3
{[%clk 0:00:53]} 25... fxg3 {[%clk 0:00:48.4]} 26. Rxg3+ {[%clk 0:00:51.6]}
26... Kh8 {[%clk 0:00:47.7]} 27. Rd2 {[%clk 0:00:37.4]} 27... Re1+ {[%clk
0:00:46.4]} 28. Kh2 {[%clk 0:00:37]} 28... R1e5 {[%clk 0:00:44.7]} 29. Rd4
{[%clk 0:00:30.2]} 29... Rg8 {[%clk 0:00:40.9]} 30. Rdg4 {[%clk 0:00:19]} 30...
Reg5 {[%clk 0:00:40.8]} 31. Rxg5 {[%clk 0:00:14.6]} 31... Rxg5 {[%clk
0:00:41.7]} 32. Rxg5 {[%clk 0:00:14.9]} 32... Qxg5 {[%clk 0:00:42.2]} 33. Qc3+
{[%clk 0:00:15.1]} 33... Qe5+ {[%clk 0:00:41.2]} 34. Qxe5+ {[%clk 0:00:14.9]}
34... dxe5 {[%clk 0:00:42.1]} 35. b4 {[%clk 0:00:15]} 35... axb4 {[%clk
0:00:40.8]} 36. axb4 {[%clk 0:00:15.9]} 36... Kg7 {[%clk 0:00:34.4]} 37. Kg3
{[%clk 0:00:15.5]} 37... f5 {[%clk 0:00:33.5]} 38. f4 {[%clk 0:00:15]} 38... e4
{[%clk 0:00:31.3]} 39. Kf2 {[%clk 0:00:15.3]} 39... Kf6 {[%clk 0:00:29.6]} 40.
Ke3 {[%clk 0:00:15]} 40... Na6 {[%clk 0:00:30]} 41. b5 {[%clk 0:00:13.7]} 41...
Nc5 {[%clk 0:00:30.5]} 42. Kd4 {[%clk 0:00:13.8]} 42... Ne6+ {[%clk 0:00:30]}
43. Ke3 {[%clk 0:00:12.8]} 43... Ke7 {[%clk 0:00:27.6]} 44. Bf1 {[%clk
0:00:11.8]} 44... Kd6 {[%clk 0:00:26.9]} 45. bxc6 {[%clk 0:00:10.8]} 45... bxc6
{[%clk 0:00:27.8]} 46. Be2 {[%clk 0:00:11.2]} 46... Kc5 {[%clk 0:00:27.8]} 47.
h4 {[%clk 0:00:11.2]} 47... Ng7 {[%clk 0:00:26.1]} 48. h5 {[%clk 0:00:08.7]}
48... Ne8 {[%clk 0:00:26.3]} 49. h6 {[%clk 0:00:08.8]} 49... Nf6 {[%clk
0:00:23.2]} 50. Bf1 {[%clk 0:00:03.7]} 50... Ng4+ {[%clk 0:00:22.3]} 51. Kd2
{[%clk 0:00:04.1]} 51... Nxh6 {[%clk 0:00:23.2]} 52. Bh3 {[%clk 0:00:04.4]}
52... Kd4 {[%clk 0:00:23.1]} 0-1

[Event "*** SCC Grand Prix: Titled Tuesday Blitz"]
[Site "Chess.com"]
[Date "2020.07.21"]
[Round "8"]
[White "vladgoncharov"]
[Black "BabyBoss31"]
[Result "0-1"]
[WhiteElo "2369"]
[BlackElo "2218"]
[TimeControl "180+1"]
[EndTime "11:36:54 PDT"]
[Termination "BabyBoss31 won on time"]

1. d4 {[%clk 0:02:59.7]} 1... d5 {[%clk 0:03:00]} 2. c4 {[%clk 0:02:57.8]} 2...
Nc6 {[%clk 0:02:59.6]} 3. cxd5 {[%clk 0:02:55.5]} 3... Qxd5 {[%clk 0:02:58.7]}
4. e3 {[%clk 0:02:54.8]} 4... e5 {[%clk 0:02:56.7]} 5. Nc3 {[%clk 0:02:55.2]}
5... Bb4 {[%clk 0:02:54.7]} 6. Bd2 {[%clk 0:02:55.2]} 6... Bxc3 {[%clk
0:02:53.7]} 7. bxc3 {[%clk 0:02:54.4]} 7... Nf6 {[%clk 0:02:48.2]} 8. Ne2 {[%clk
0:02:51]} 8... O-O {[%clk 0:02:42.4]} 9. Ng3 {[%clk 0:02:50.6]} 9... exd4 {[%clk
0:02:37.6]} 10. cxd4 {[%clk 0:02:49.6]} 10... Re8 {[%clk 0:02:36.1]} 11. Be2
{[%clk 0:02:44.7]} 11... Qxg2 {[%clk 0:02:19.6]} 12. Bf3 {[%clk 0:02:43]} 12...
Qh3 {[%clk 0:02:18.3]} 13. Bxc6 {[%clk 0:02:29.4]} 13... bxc6 {[%clk 0:02:16.4]}
14. Qf3 {[%clk 0:02:19.9]} 14... Be6 {[%clk 0:01:59.3]} 15. Qf4 {[%clk
0:02:04.7]} 15... Bd5 {[%clk 0:01:54.7]} 16. Rg1 {[%clk 0:01:59.1]} 16... Qxh2
{[%clk 0:01:50.7]} 17. O-O-O {[%clk 0:01:58.2]} 17... Ne4 {[%clk 0:01:38.2]} 18.
Be1 {[%clk 0:01:16.3]} 18... Kh8 {[%clk 0:01:08]} 19. Qxc7 {[%clk 0:01:06.7]}
19... Nxf2 {[%clk 0:00:53.6]} 20. Bxf2 {[%clk 0:01:04.7]} 20... Qxf2 {[%clk
0:00:54.5]} 21. Qf4 {[%clk 0:00:53]} 21... Qxe3+ {[%clk 0:00:33.8]} 22. Qxe3
{[%clk 0:00:52.5]} 22... Rxe3 {[%clk 0:00:34.7]} 23. Nf5 {[%clk 0:00:52.1]}
23... Rf3 {[%clk 0:00:34.8]} 24. Nxg7 {[%clk 0:00:49.4]} 24... Rg8 {[%clk
0:00:29.4]} 25. Nh5 {[%clk 0:00:47.6]} 25... Rxg1 {[%clk 0:00:26.6]} 26. Rxg1
{[%clk 0:00:47.4]} 26... Rf5 {[%clk 0:00:27.2]} 27. Ng7 {[%clk 0:00:47.1]} 27...
Rf6 {[%clk 0:00:23.2]} 28. Ne8 {[%clk 0:00:46.3]} 28... Re6 {[%clk 0:00:20.5]}
29. Nc7 {[%clk 0:00:45.4]} 29... Re4 {[%clk 0:00:20.5]} 30. a3 {[%clk
0:00:39.9]} 30... Rxd4 {[%clk 0:00:19.3]} 31. Kc2 {[%clk 0:00:39.8]} 31... Re4
{[%clk 0:00:15.4]} 32. Kc3 {[%clk 0:00:39.5]} 32... Re7 {[%clk 0:00:14.3]} 33.
Na6 {[%clk 0:00:37.5]} 33... f5 {[%clk 0:00:12.7]} 34. Nc5 {[%clk 0:00:33.4]}
34... f4 {[%clk 0:00:12.5]} 35. Nd3 {[%clk 0:00:33.6]} 35... f3 {[%clk
0:00:12.7]} 36. Kd4 {[%clk 0:00:30.7]} 36... Rf7 {[%clk 0:00:11.5]} 37. Nf2
{[%clk 0:00:28.4]} 37... Rf4+ {[%clk 0:00:11.2]} 38. Ke5 {[%clk 0:00:27.6]}
38... Rf7 {[%clk 0:00:10.2]} 39. Rb1 {[%clk 0:00:27.1]} 39... h6 {[%clk
0:00:09.1]} 40. Rb4 {[%clk 0:00:25.5]} 40... Kh7 {[%clk 0:00:08.4]} 41. Rh4
{[%clk 0:00:25.1]} 41... Kg6 {[%clk 0:00:08.1]} 42. Rh3 {[%clk 0:00:22.3]} 42...
h5 {[%clk 0:00:08.1]} 43. Rg3+ {[%clk 0:00:21.3]} 43... Kh6 {[%clk 0:00:08.4]}
44. Rh3 {[%clk 0:00:21.5]} 44... Kg5 {[%clk 0:00:08.6]} 45. Rg3+ {[%clk
0:00:21.5]} 45... Kh6 {[%clk 0:00:09.1]} 46. Rh3 {[%clk 0:00:21.8]} 46... Rg7
{[%clk 0:00:09.1]} 47. Kf4 {[%clk 0:00:18.2]} 47... Rg2 {[%clk 0:00:09.1]} 48.
Ke3 {[%clk 0:00:18.2]} 48... Rg1 {[%clk 0:00:07.5]} 49. a4 {[%clk 0:00:17]}
49... Re1+ {[%clk 0:00:07.8]} 50. Kf4 {[%clk 0:00:16.3]} 50... Re2 {[%clk
0:00:08.1]} 51. Kg3 {[%clk 0:00:16.4]} 51... Ra2 {[%clk 0:00:08]} 52. Rh4 {[%clk
0:00:16.3]} 52... a5 {[%clk 0:00:06.8]} 53. Rf4 {[%clk 0:00:14.6]} 53... Rb2
{[%clk 0:00:06.7]} 54. Rf8 {[%clk 0:00:09.2]} 54... Rb4 {[%clk 0:00:06.2]} 55.
Rh8+ {[%clk 0:00:08.2]} 55... Kg6 {[%clk 0:00:05.6]} 56. Ra8 {[%clk 0:00:07.3]}
56... Rxa4 {[%clk 0:00:05.5]} 57. Nh3 {[%clk 0:00:07.3]} 57... h4+ {[%clk
0:00:03.9]} 58. Kf2 {[%clk 0:00:04.8]} 58... Ra2+ {[%clk 0:00:04.8]} 59. Ke3
{[%clk 0:00:04.9]} 59... a4 {[%clk 0:00:05.7]} 60. Ra5 {[%clk 0:00:02.7]} 60...
a3 {[%clk 0:00:05.7]} 61. Nf4+ {[%clk 0:00:01.7]} 61... Kf7 {[%clk 0:00:04.3]}
62. Nh3 {[%clk 0:00:01.7]} 62... Ra1 {[%clk 0:00:04.1]} 0-1

[Event "*** SCC Grand Prix: Titled Tuesday Blitz"]
[Site "Chess.com"]
[Date "2020.07.21"]
[Round "8"]
[White "Nayemhaque22"]
[Black "bsnsun"]
[Result "0-1"]
[WhiteElo "2200"]
[BlackElo "2390"]
[TimeControl "180+1"]
[EndTime "11:36:57 PDT"]
[Termination "bsnsun won by resignation"]

1. e4 {[%clk 0:03:00.9]} 1... c6 {[%clk 0:02:57.6]} 2. d4 {[%clk 0:03:00.1]}
2... d5 {[%clk 0:02:57.8]} 3. exd5 {[%clk 0:02:59.7]} 3... cxd5 {[%clk
0:02:57.6]} 4. Bd3 {[%clk 0:02:59.5]} 4... Nc6 {[%clk 0:02:57.5]} 5. c3 {[%clk
0:02:58.8]} 5... Qc7 {[%clk 0:02:57.9]} 6. Ne2 {[%clk 0:02:55.5]} 6... Bg4
{[%clk 0:02:57.9]} 7. f3 {[%clk 0:02:53.5]} 7... Bh5 {[%clk 0:02:55.9]} 8. Bf4
{[%clk 0:02:53.5]} 8... Qb6 {[%clk 0:02:56.3]} 9. Qb3 {[%clk 0:02:52.3]} 9... e6
{[%clk 0:02:52.2]} 10. Nd2 {[%clk 0:02:50.9]} 10... Nf6 {[%clk 0:02:49.9]} 11.
O-O {[%clk 0:02:35.5]} 11... Be7 {[%clk 0:02:47.2]} 12. Rfe1 {[%clk 0:02:33.8]}
12... O-O {[%clk 0:02:47]} 13. Ng3 {[%clk 0:02:29.9]} 13... Bg6 {[%clk
0:02:46.6]} 14. Bxg6 {[%clk 0:02:28.6]} 14... hxg6 {[%clk 0:02:46.9]} 15. Ngf1
{[%clk 0:02:19.6]} 15... Qa6 {[%clk 0:02:45.2]} 16. Ne3 {[%clk 0:02:09.9]} 16...
b5 {[%clk 0:02:43.1]} 17. a4 {[%clk 0:02:04.2]} 17... b4 {[%clk 0:02:42.5]} 18.
Be5 {[%clk 0:01:53.2]} 18... bxc3 {[%clk 0:02:34.4]} 19. bxc3 {[%clk 0:01:47.3]}
19... Nxe5 {[%clk 0:02:34.4]} 20. dxe5 {[%clk 0:01:46.5]} 20... Nd7 {[%clk
0:02:34.7]} 21. Qb5 {[%clk 0:01:39.2]} 21... Nc5 {[%clk 0:02:22.7]} 22. Qxa6
{[%clk 0:01:34.9]} 22... Nxa6 {[%clk 0:02:22.6]} 23. c4 {[%clk 0:01:30.7]} 23...
d4 {[%clk 0:02:21.6]} 24. Nc2 {[%clk 0:01:26.7]} 24... d3 {[%clk 0:02:18.2]} 25.
Ne3 {[%clk 0:01:23.4]} 25... Bb4 {[%clk 0:02:08.4]} 26. Red1 {[%clk 0:01:17.9]}
26... Nc5 {[%clk 0:02:02.4]} 27. Rab1 {[%clk 0:01:12.8]} 27... Bxd2 {[%clk
0:01:32.6]} 28. Rxd2 {[%clk 0:01:12]} 28... Rab8 {[%clk 0:01:33.5]} 29. Rb5
{[%clk 0:01:10.5]} 29... Rfc8 {[%clk 0:01:24.4]} 30. a5 {[%clk 0:01:07.4]} 30...
a6 {[%clk 0:01:19.3]} 31. Rb6 {[%clk 0:01:07.1]} 31... Rxb6 {[%clk 0:01:05.4]}
32. axb6 {[%clk 0:01:05.8]} 32... Rb8 {[%clk 0:01:06.1]} 33. Rb2 {[%clk
0:01:05.1]} 33... Nd7 {[%clk 0:00:57.4]} 34. Rd2 {[%clk 0:00:55.7]} 34... Rxb6
{[%clk 0:00:56.2]} 35. Rxd3 {[%clk 0:00:55.2]} 35... Nxe5 {[%clk 0:00:56.4]} 36.
Rd2 {[%clk 0:00:27.1]} 36... Rb3 {[%clk 0:00:50.6]} 37. Kf2 {[%clk 0:00:26.4]}
37... Rc3 {[%clk 0:00:44.2]} 38. Ra2 {[%clk 0:00:23]} 38... Nxc4 {[%clk
0:00:32.6]} 39. Nxc4 {[%clk 0:00:21.8]} 39... Rxc4 {[%clk 0:00:33.5]} 40. Rxa6
{[%clk 0:00:21.2]} 40... g5 {[%clk 0:00:34.4]} 41. Kg3 {[%clk 0:00:21]} 41...
Kh7 {[%clk 0:00:34]} 42. h3 {[%clk 0:00:21.1]} 42... Kg6 {[%clk 0:00:34.3]} 43.
Ra5 {[%clk 0:00:20.9]} 43... Kf6 {[%clk 0:00:34.4]} 44. Ra7 {[%clk 0:00:20.6]}
44... Rc2 {[%clk 0:00:33.6]} 45. Rb7 {[%clk 0:00:20.8]} 45... Kg6 {[%clk
0:00:32.9]} 46. Ra7 {[%clk 0:00:21.1]} 46... Re2 {[%clk 0:00:33.2]} 47. Rb7
{[%clk 0:00:20.5]} 47... f5 {[%clk 0:00:33.4]} 48. Re7 {[%clk 0:00:19.7]} 48...
f4+ {[%clk 0:00:33.5]} 49. Kh2 {[%clk 0:00:18.6]} 49... Kf6 {[%clk 0:00:33]} 50.
Ra7 {[%clk 0:00:18.7]} 50... e5 {[%clk 0:00:29]} 51. Ra6+ {[%clk 0:00:18.5]}
51... Kf5 {[%clk 0:00:28.7]} 52. Ra7 {[%clk 0:00:18.4]} 52... g6 {[%clk
0:00:29.2]} 53. Rf7+ {[%clk 0:00:18]} 53... Ke6 {[%clk 0:00:29.6]} 54. Rg7
{[%clk 0:00:18.2]} 54... Kf6 {[%clk 0:00:30.1]} 55. Rg8 {[%clk 0:00:18.2]} 55...
e4 {[%clk 0:00:30.3]} 56. fxe4 {[%clk 0:00:17.3]} 56... Kf7 {[%clk 0:00:26.5]}
57. Rf8+ {[%clk 0:00:18.2]} 57... Kxf8 {[%clk 0:00:26.1]} 58. Kg1 {[%clk
0:00:16.9]} 58... Rxe4 {[%clk 0:00:25.6]} 0-1